bitfinex/quotes_ETHUSD_20241119
["timestamp","ask_amount","ask_price","bid_price","bid_amount"]
[1732031252679,0.321875,3106.7,3106.1,0.55]
[1732031253031,3.64668,3107.0,3106.1,0.65717548]
[1732031253274,3.21878,3106.8,3106.1,0.65717548]
[1732031253445,3.21878,3106.8,3106.1,3.21939]
[1732031253641,0.4281,3106.8,3105.7,0.7784]
[1732031253843,3.6469,3106.8,3105.8,3.21971]
[1732031254075,3.21884,3106.7,3105.8,3.21971]
[1732031254275,0.39243639,3107.2,3105.7,0.64166786]
[1732031254276,0.4281,3106.3,3105.7,0.64166786]
[1732031254447,0.4281,3106.3,3105.8,3.21977]
[1732031254448,0.364727,3106.2,3105.8,3.21977]
[1732031254778,0.4281,3106.3,3105.8,3.21977]
[1732031254979,3.64702,3106.7,3105.8,3.21971]
[1732031255154,3.21895,3106.6,3105.8,6.4394]
[1732031255486,0.4281,3106.7,3106.0,3.21956]
[1732031255487,0.364705,3106.5,3106.0,3.21956]
[1732031255634,3.64698,3106.7,3106.0,3.21956]
[1732031256080,3.21901,3106.6,3105.6,0.55]
[1732031256289,3.583708,3106.6,3105.8,3.2197]
[1732031256453,3.583708,3106.6,3105.8,6.4394]
[1732031256651,3.583708,3106.6,3105.6,0.55]
[1732031256652,0.364698,3106.6,3105.6,3.21991]
[1732031256973,0.4281,3106.7,3105.5,0.65196337]
[1732031256974,0.4281,3106.2,3105.5,0.65196337]
[1732031257155,0.4281,3106.2,3105.4,4.02384]
[1732031257351,0.4281,3106.2,3105.0,3.0]
[1732031257352,0.4281,3106.2,3105.1,1.40487571]
[1732031257579,3.21974,3105.9,3105.1,4.62528571]
[1732031257883,6.21905,3106.5,3105.1,4.62528571]
[1732031257884,0.4281,3105.8,3105.2,3.22037]
[1732031258181,0.4281,3105.8,3105.4,3.22014]
[1732031258780,3.64722,3106.5,3105.8,3.21969]
[1732031259347,0.364722,3106.4,3106.0,3.21953]
[1732031259769,0.364722,3106.4,3105.8,6.43939]
[1732031259950,0.364722,3106.4,3105.9,0.63620771]
[1732031260283,3.21879,3106.8,3106.1,3.21937]
[1732031260284,3.64689,3106.8,3106.1,3.21937]
[1732031260591,3.64689,3106.8,3106.2,3.21935]
[1732031260744,0.364689,3106.7,3106.2,3.21935]
[1732031262211,3.64688,3106.8,3105.9,0.63620771]
[1732031262212,0.4281,3106.8,3105.9,0.63620771]
[1732031262407,3.64694,3106.8,3105.8,3.21974]
[1732031262710,0.60405261,3106.7,3105.8,3.21974]
[1732031262867,0.4281,3106.3,3105.8,3.21974]
[1732031263064,0.4281,3106.3,3105.7,0.7823]
[1732031263265,0.4281,3106.3,3105.6,3.21989]
[1732031263564,3.21942,3106.2,3105.6,3.21989]
[1732031264679,3.21942,3106.2,3105.5,4.65530341]
[1732031264891,0.364752,3106.1,3105.5,4.65530341]
[1732031265077,3.21959,3106.0,3105.5,0.62816341]
[1732031265408,0.364752,3106.1,3105.5,3.84822341]
[1732031265981,3.584222,3106.1,3105.5,3.22006]
[1732031266180,3.4593308,3106.0,3105.4,3.22019]
[1732031266365,3.4593308,3106.0,3105.2,0.8299]
[1732031266366,3.4594208,3105.9,3105.2,0.8299]
[1732031266568,3.8876308,3105.8,3105.2,3.22039]
[1732031266798,0.2397508,3105.7,3105.2,3.22039]
[1732031267011,0.2397508,3105.6,3105.2,3.22039]
[1732031267322,0.4281,3105.8,3105.4,3.22013]
[1732031267481,0.24045603,3105.7,3105.4,3.22013]
[1732031267670,0.4281,3105.8,3105.4,3.22013]
[1732031267873,0.24045771,3105.7,3105.4,3.22013]
[1732031268100,0.4281,3105.8,3105.2,3.22036]
[1732031268101,0.4281,3105.8,3105.2,3.22033]
[1732031268418,0.24045944,3105.7,3105.3,3.22027]
[1732031268586,0.38486694,3106.0,3105.5,0.55]
[1732031268786,0.24051786,3105.9,3105.8,3.21971]
[1732031269112,0.3848132,3106.3,3105.8,3.76971]
[1732031269270,0.62553389,3106.2,3106.0,3.21955]
[1732031269472,0.24059111,3106.1,3106.0,3.21955]
[1732031270020,0.38494278,3106.4,3106.1,3.2194]
[1732031270303,0.4281,3106.7,3106.0,4.091505]
[1732031270304,0.24057649,3106.3,3106.0,4.091505]
[1732031270509,0.24057649,3106.2,3106.1,3.21947]
[1732031271291,0.38504257,3106.5,3106.2,3.21934]
[1732031271516,0.24064071,3106.4,3106.3,3.21919]
[1732031271712,0.24064071,3106.4,3106.2,3.21935]
[1732031271873,0.24064071,3106.3,3105.9,3.98302]
[1732031272071,3.219,3106.6,3105.8,3.21973]
[1732031272072,0.24064071,3106.2,3105.8,3.21973]
[1732031272371,0.4281,3106.4,3105.8,3.2197]
[1732031272566,0.4281,3106.4,3105.7,0.55]
[1732031272825,3.64732,3106.4,3105.7,3.76983]
[1732031272983,4.02244097,3106.4,3105.7,0.55]
[1732031273171,4.02244097,3106.4,3105.7,3.21985]
[1732031273368,3.21956,3106.1,3105.5,0.64554122]
[1732031273613,3.21938,3106.2,3105.6,3.21998]
[1732031273785,0.24067923,3106.0,3105.5,0.64554122]
[1732031273970,0.62576601,3105.9,3105.5,3.86557122]
[1732031274173,0.66877923,3105.8,3105.5,0.64554122]
[1732031274400,0.62582848,3105.7,3105.5,0.64554122]
[1732031274610,0.24067923,3105.6,3105.1,7.23109]
[1732031274915,0.4281,3105.8,3105.1,7.23109]
[1732031274916,0.24067923,3105.5,3105.2,3.22038]
[1732031275095,0.24067923,3105.4,3105.2,3.22038]
[1732031275300,0.24067923,3105.3,3105.2,3.22038]
[1732031276213,0.24067923,3105.3,3105.1,0.7902]
[1732031276383,0.38503673,3105.6,3105.1,0.7902]
[1732031276592,0.6256821,3105.5,3105.2,3.22034]
[1732031276796,0.24064635,3105.4,3105.2,3.22034]
[1732031277085,0.4281,3105.8,3105.2,3.22034]
[1732031277086,0.38503537,3105.5,3105.2,3.22034]
[1732031277288,0.24064711,3105.3,3105.2,3.22034]
[1732031277618,0.24064711,3105.3,3105.1,4.01067]
[1732031277771,0.38495453,3105.6,3105.1,4.01067]
[1732031277976,0.24059952,3105.5,3105.0,0.55]
[1732031278176,4.04472324,3105.6,3105.0,3.22053]
[1732031278177,0.24059952,3105.4,3105.0,3.22053]
[1732031278514,0.82466204,3105.6,3105.0,3.22053]
[1732031278718,3.64791,3105.8,3105.2,3.22034]
[1732031278719,0.24054591,3105.5,3105.2,3.22034]
[1732031278924,0.24054591,3105.4,3105.3,3.2203]
[1732031279079,0.4281,3105.8,3105.4,3.22018]
[1732031279273,0.24052329,3105.7,3105.5,0.7936]
[1732031279474,0.4281,3106.3,3105.5,4.01369]
[1732031279720,3.21952,3106.1,3105.5,4.01369]
[1732031280027,0.62539002,3106.0,3105.6,3.21997]
[1732031280173,0.24051888,3105.9,3105.6,3.21997]
[1732031280375,0.24051888,3105.8,3105.5,4.0136]
[1732031280579,0.38482488,3106.1,3105.6,3.21991]
[1732031280924,3.84490418,3106.0,3105.5,0.7936]
[1732031281136,3.4600766,3106.0,3105.4,3.22014]
[1732031281415,0.66833917,3105.9,3105.4,3.22014]
[1732031281775,0.2405066,3105.8,3105.4,3.22014]
[1732031282005,0.24052597,3105.7,3105.4,0.65386991]
[1732031282280,0.8129416,3106.0,3105.5,3.22002]
[1732031282591,0.2406132,3105.9,3105.4,3.22019]
[1732031282781,0.2406132,3105.8,3105.4,3.22019]
[1732031282976,3.64771,3106.0,3105.4,3.22019]
[1732031283193,3.21981,3105.8,3105.3,0.64826972]
[1732031283412,3.64772,3106.0,3105.3,0.64826972]
[1732031283413,3.46056257,3105.7,3105.3,0.64826972]
[1732031283611,0.24062257,3105.6,3105.3,0.64826972]
[1732031283815,0.38504793,3105.8,3105.3,0.64826972]
[1732031284016,0.24065853,3105.7,3105.3,0.64826972]
[1732031284215,0.24065853,3105.6,3105.3,0.64826972]
[1732031284422,0.38504793,3105.8,3105.3,0.64826972]
[1732031284739,3.22096,3104.7,3104.1,3.22152]
[1732031284880,0.56275626,3104.6,3104.2,3.22137]
[1732031285078,6.64868,3105.1,3104.8,3.22081]
[1732031285079,0.38508934,3104.9,3104.8,3.22081]
[1732031285405,3.64834,3105.4,3104.8,3.22081]
[1732031285722,0.62550179,3105.3,3104.8,3.22081]
[1732031285926,0.24057554,3105.2,3104.8,3.22081]
[1732031286081,0.24057554,3105.1,3104.8,3.22081]
[1732031286277,4.03326625,3105.4,3104.6,3.22097]
[1732031286500,4.51066167,3105.3,3104.6,6.44193]
[1732031286826,3.84584018,3105.2,3104.5,0.751]
[1732031286978,0.69159826,3105.1,3104.5,3.97208]
[1732031287180,0.24053084,3105.0,3104.5,3.97208]
[1732031287419,0.4281,3105.4,3104.5,3.97208]
[1732031287420,0.4281,3105.4,3104.5,0.751]
[1732031287590,0.24042761,3105.3,3104.8,3.22075]
[1732031287788,0.24042761,3105.2,3104.9,3.22063]
[1732031287990,4.03267418,3105.7,3105.1,3.22049]
[1732031288183,0.62508785,3105.6,3104.9,3.22064]
[1732031288387,0.24040367,3105.5,3105.0,3.2206]
[1732031288579,0.24040367,3105.4,3105.0,3.2206]
[1732031288791,3.22,3105.6,3105.0,3.2206]
[1732031288993,0.24037923,3105.5,3105.0,3.2206]
[1732031289221,0.24037923,3105.4,3105.0,3.2206]
[1732031289421,3.22,3105.6,3105.0,3.2206]
[1732031289608,0.24037812,3105.5,3105.0,3.2206]
[1732031289809,3.22,3105.6,3105.0,3.2206]
[1732031289810,0.24037812,3105.4,3105.0,3.2206]
[1732031289997,3.22,3105.6,3105.0,3.2206]
[1732031290192,3.2201,3105.5,3104.9,0.64790699]
[1732031290392,3.2202,3105.4,3104.9,0.64790699]
[1732031290738,0.64366816,3105.5,3104.9,0.64790699]
[1732031290739,0.24038974,3105.3,3104.9,3.86851699]
[1732031290944,3.62343842,3105.5,3104.9,3.86851699]
[1732031291169,0.4281,3105.3,3104.5,0.751]
[1732031291303,3.22083,3104.8,3104.1,4.01184]
[1732031291655,0.322083,3104.7,3104.1,4.01184]
[1732031291961,3.64893,3104.8,3104.1,4.01184]
[1732031292101,3.64893,3104.8,3104.1,7.23331]
[1732031292414,0.4281,3104.8,3104.3,3.22133]
[1732031292615,3.64897,3104.8,3104.1,7.23325]
[1732031293047,1.115063,3104.8,3104.0,0.62872024]
[1732031293258,3.22133,3104.3,3104.0,0.62872024]
[1732031293403,0.4281,3104.2,3104.0,0.62872024]
[1732031293916,6.13317664,3104.1,3104.0,0.62872024]
[1732031294132,6.13317664,3104.1,3103.1,3.22248]
[1732031294133,3.22186,3103.8,3103.1,3.22248]
[1732031294343,3.22186,3103.8,3103.2,3.22247]
[1732031294701,0.4281,3103.7,3103.2,3.22247]
[1732031294905,1.115277,3103.7,3103.2,3.22247]
[1732031295108,0.4281,3103.7,3103.2,3.22247]
[1732031295306,0.97827166,3104.0,3103.4,3.2222]
[1732031295505,0.4281,3104.0,3103.4,3.2222]
[1732031295707,0.4281,3104.0,3103.5,3.2221]
[1732031295925,0.4281,3104.0,3103.4,3.77225]
[1732031296531,0.4281,3104.0,3103.4,0.55]
[1732031296737,0.4281,3104.0,3103.0,0.62851567]
[1732031296738,3.22196,3103.7,3103.1,3.77258]
[1732031296910,3.586779,3103.9,3103.1,3.77258]
[1732031297110,0.4014879,3103.8,3103.1,3.77258]
[1732031297660,0.4014879,3103.8,3103.2,3.22241]
[1732031297963,0.4014879,3103.8,3103.2,3.22247]
[1732031298107,0.4014879,3103.8,3103.1,3.77252]
[1732031298108,0.4281,3104.0,3103.1,0.55]
[1732031298313,0.4281,3104.0,3103.5,3.22215]
[1732031298543,0.4281,3104.0,3103.5,3.22209]
[1732031298751,0.4281,3104.0,3103.6,3.22206]
[1732031299022,0.4281,3104.0,3103.5,3.22209]
[1732031300251,3.64935,3104.4,3103.5,3.866575]
[1732031300455,0.4281,3104.4,3103.6,0.55]
[1732031300616,0.364924,3104.3,3103.7,3.22194]
[1732031300819,3.586274,3104.3,3103.6,0.55]
[1732031301270,3.22152,3104.2,3103.6,0.55]
[1732031301413,3.9451094,3104.2,3103.6,0.55]
[1732031301748,3.9451094,3104.2,3103.4,0.55]
[1732031301749,3.22171,3104.0,3103.4,0.55]
[1732031301964,0.322171,3103.9,3103.4,0.55]
[1732031302165,0.4281,3103.8,3103.3,3.22236]
[1732031302637,0.4281,3103.8,3103.4,3.22224]
[1732031303576,4.3731794,3104.2,3103.4,3.22224]
[1732031303717,3.2216,3104.1,3103.4,3.22224]
[1732031304757,3.2216,3104.1,3103.3,3.22235]
[1732031304961,0.36497,3104.0,3103.3,3.22235]
[1732031305257,0.4281,3103.8,3103.0,0.7741]
[1732031305617,3.22141,3104.3,3103.5,3.2221]
[1732031305823,0.56175021,3104.2,3103.6,3.22198]
[1732031306055,0.322141,3104.2,3103.7,3.22194]
[1732031306317,3.22125,3104.4,3103.7,3.22194]
[1732031306542,0.23960437,3104.3,3103.7,3.22194]
[1732031306740,0.23960437,3104.3,3103.6,4.0051]
[1732031306949,3.56757544,3104.2,3103.5,3.22216]
[1732031307219,3.22134,3104.3,3103.6,3.22205]
[1732031307857,0.81148415,3104.5,3103.5,3.22208]
[1732031307858,3.22125,3104.4,3103.5,3.22208]
[1732031308061,3.22134,3104.3,3103.5,3.677606]
[1732031308357,3.22134,3104.3,3103.3,4.00543]
[1732031308358,0.66773647,3104.2,3103.3,4.00543]
[1732031308567,3.22165,3104.0,3103.4,3.22227]
[1732031308714,3.22165,3104.0,3103.2,0.55]
[1732031308917,0.58579681,3103.9,3103.2,0.55]
[1732031309162,0.4281,3103.7,3103.1,3.22257]
[1732031309315,3.65006,3103.7,3103.1,3.22257]
[1732031309938,0.4281,3103.7,3103.2,3.22246]
[1732031310455,0.4281,3103.6,3102.2,0.8027]
[1732031310779,0.364987,3103.7,3102.2,0.8027]
[1732031310780,3.65039,3103.4,3102.8,3.22285]
[1732031310942,0.4281,3103.4,3102.9,3.22272]
[1732031311143,0.4281,3103.4,3102.7,3.22294]
[1732031311338,3.65044,3103.4,3102.8,3.22287]
[1732031311581,1.115361,3103.4,3102.8,3.22287]
[1732031311738,0.4281,3103.4,3102.9,3.22273]
[1732031311940,0.4281,3103.7,3103.2,3.22246]
[1732031312183,0.4281,3103.7,3103.3,3.22236]
[1732031312553,3.82618245,3104.2,3103.3,3.2223]
[1732031312554,3.81178188,3104.0,3103.3,3.2223]
[1732031312743,0.23979889,3103.9,3103.3,3.2223]
[1732031313078,3.64976,3104.0,3103.4,3.22222]
[1732031313079,0.4281,3104.0,3103.4,3.22222]
[1732031313238,0.23991082,3103.9,3103.6,3.22205]
[1732031313455,0.23991082,3103.9,3103.2,0.8184]
[1732031313456,0.4281,3104.0,3103.2,0.8184]
[1732031313661,0.4281,3104.0,3103.4,3.22219]
[1732031313909,0.4281,3104.0,3103.3,3.77237]
[1732031314061,0.4281,3104.0,3103.4,0.63673547]
[1732031314262,3.46186765,3103.9,3103.4,0.63673547]
[1732031314460,0.4281,3103.7,3103.0,3.22262]
[1732031314667,0.4281,3103.7,3102.6,1.3334]
[1732031314668,0.4281,3103.7,3103.2,0.62881251]
[1732031314893,0.24005146,3103.6,3103.2,3.85121251]
[1732031315062,0.4281,3103.7,3103.2,0.62881251]
[1732031315264,0.4281,3103.7,3103.2,3.85128251]
[1732031315778,0.8121338,3104.0,3103.3,3.22231]
[1732031316086,0.24003117,3103.9,3103.4,3.22218]
[1732031316406,0.24003117,3103.8,3103.4,3.22218]
[1732031316574,3.64976,3104.0,3103.4,3.22218]
[1732031316775,3.46184211,3103.9,3103.3,3.77236]
[1732031317107,0.24008211,3103.8,3103.4,3.22219]
[1732031317303,0.24008211,3103.9,3103.5,3.22211]
[1732031317514,0.38417259,3104.2,3103.6,3.22206]
[1732031317665,3.64948,3104.3,3103.5,0.55]
[1732031317666,0.24012203,3104.1,3103.5,0.55]
[1732031318015,0.01,3105.6,3103.6,1.32136827]
[1732031318016,3.22113,3104.5,3103.6,1.32136827]
[1732031318162,0.38423646,3104.9,3103.6,1.32136827]
[1732031318163,3.2213,3104.4,3103.9,0.62992734]
[1732031318510,0.4281,3104.2,3103.9,0.62992734]
[1732031318673,3.64956,3104.2,3103.9,0.62992734]
[1732031319009,0.24021935,3104.1,3103.4,3.22225]
[1732031319160,3.22106,3104.6,3103.4,3.22225]
[1732031319161,3.22012,3105.5,3104.0,3.98824]
[1732031319360,5.53849513,3106.0,3105.5,3.22009]
[1732031319361,0.4281,3106.0,3105.5,3.22009]
[1732031319606,0.4281,3106.0,3105.4,3.2201]
[1732031319904,3.21906,3106.5,3105.4,0.55]
[1732031319905,0.4281,3106.5,3105.4,0.55]
[1732031320212,0.321906,3106.4,3105.9,3.2196]
[1732031320374,0.321906,3106.4,3105.8,0.7666]
[1732031320375,0.4281,3106.5,3105.8,0.7666]
[1732031320575,0.4381,3107.2,3105.8,3.98634]
[1732031320795,0.4381,3107.2,3105.6,3.21996]
[1732031320796,3.21913,3106.5,3105.6,3.21996]
[1732031320967,0.750013,3106.4,3105.6,3.21996]
[1732031321289,3.969173,3106.4,3105.6,3.21997]
[1732031321607,3.21942,3106.2,3105.5,0.7666]
[1732031321775,3.21971,3105.9,3105.1,0.7806]
[1732031321979,3.21992,3105.7,3104.8,0.7806]
[1732031322316,0.4281,3105.5,3104.8,4.00132]
[1732031322483,0.4281,3105.5,3104.8,7.22206]
[1732031322817,3.64821,3105.5,3104.9,0.63894471]
[1732031323117,0.3970202,3105.4,3104.9,0.63894471]
[1732031323906,3.22033,3105.3,3104.9,0.63894471]
[1732031324108,3.64872,3105.0,3104.2,0.7585]
[1732031324409,3.22078,3104.9,3103.8,3.98033]
[1732031324747,0.4281,3104.6,3103.8,3.98033]
[1732031324913,3.22116,3104.5,3103.6,3.88045528]
[1732031325064,3.22116,3104.5,3103.6,3.22204]
[1732031325609,0.364888,3104.8,3103.2,3.8801771]
[1732031325610,0.4281,3104.0,3103.2,3.8801771]
[1732031325772,3.22188,3103.8,3103.1,0.7529]
[1732031326109,3.22179,3103.9,3103.0,3.22264]
[1732031326277,3.64983,3104.0,3103.0,3.22264]
[1732031326481,0.364983,3103.9,3103.0,6.44526]
[1732031326679,0.364983,3103.9,3103.0,3.22262]
[1732031326870,0.364983,3103.9,3102.8,0.7529]
[1732031327069,0.364983,3103.9,3103.1,0.55]
[1732031327290,0.364983,3103.9,3103.1,3.22249]
[1732031327868,0.4281,3104.0,3103.2,3.22248]
[1732031328064,0.4281,3104.0,3103.3,3.2223]
[1732031328629,0.4281,3104.0,3103.4,3.22219]
[1732031328843,0.4281,3104.4,3103.7,3.22189]
[1732031329027,0.4281,3104.4,3103.5,3.22209]
[1732031329342,3.34281,3104.3,3103.5,3.22209]
[1732031329630,0.34281,3104.3,3103.6,3.22205]
[1732031330042,3.56415,3104.3,3103.4,3.22226]
[1732031330333,0.34281,3104.3,3103.5,3.77216]
[1732031330745,0.34281,3104.3,3103.6,3.22201]
[1732031331044,0.4281,3104.4,3103.8,3.22184]
[1732031331238,3.4281,3104.4,3103.6,4.04531]
[1732031331611,0.4281,3104.4,3103.9,3.22168]
[1732031331812,0.4281,3104.7,3104.0,0.322168]
[1732031331997,0.4281,3104.7,3103.9,3.22168]
[1732031332514,0.4281,3104.7,3104.0,3.22157]
[1732031332708,0.4281,3104.7,3104.2,3.22137]
[1732031332916,0.4281,3104.7,3104.3,0.322137]
[1732031333127,0.4281,3104.7,3104.2,3.22137]
[1732031333627,0.4281,3105.0,3104.4,3.22118]
[1732031334227,0.4281,3105.0,3104.5,3.2211]
[1732031334942,0.4281,3105.0,3104.3,3.626527]
[1732031334943,0.4281,3105.0,3104.6,3.22101]
[1732031335142,0.4281,3105.0,3104.7,3.22091]
[1732031335347,3.6482,3105.5,3104.7,3.22091]
[1732031335525,3.970199,3105.5,3104.7,3.22091]
[1732031335726,3.22021,3105.4,3104.6,3.221]
[1732031336051,0.750099,3105.5,3105.1,3.22044]
[1732031336052,0.4281,3105.5,3105.1,3.22044]
[1732031336229,0.4281,3105.5,3104.9,4.03212]
[1732031336546,0.4281,3105.5,3105.1,3.22049]
[1732031337195,0.4281,3105.5,3104.9,0.8115]
[1732031337751,3.2203,3105.3,3104.5,3.22104]
[1732031337897,3.2203,3105.3,3104.5,3.86251881]
[1732031339325,3.22051,3105.1,3104.3,4.00058]
[1732031339640,3.22051,3105.1,3104.4,3.77117]
[1732031339641,0.4281,3105.1,3104.4,3.77117]
[1732031340128,0.4281,3105.1,3104.2,0.55]
[1732031340129,3.22073,3104.9,3104.2,0.55]
[1732031340330,0.4281,3104.7,3104.1,0.63716494]
[1732031340528,0.4281,3104.7,3104.0,4.02636]
[1732031340712,0.4281,3104.7,3103.8,3.22181]
[1732031341043,0.4281,3104.7,3104.1,3.22148]
[1732031341240,3.64904,3104.7,3103.9,3.22175]
[1732031341410,4.013923,3104.7,3103.9,3.22175]
[1732031341750,0.4281,3104.7,3104.0,0.63896775]
[1732031341932,0.01,3105.9,3104.0,0.63896775]
[1732031341933,0.4281,3105.0,3104.4,3.22123]
[1732031342099,0.4281,3105.0,3104.5,3.22105]
[1732031342305,0.4281,3105.0,3104.7,3.22092]
[1732031342639,0.4281,3105.0,3104.5,3.22105]
[1732031342640,0.4281,3105.0,3104.6,3.221]
[1732031343426,0.4281,3105.4,3104.7,3.22086]
[1732031343645,0.4281,3105.4,3104.8,3.22078]
[1732031343845,0.85153661,3105.7,3105.0,3.22061]
[1732031343846,0.4281,3105.7,3105.0,3.22061]
[1732031344520,0.4281,3105.7,3105.0,3.22055]
[1732031344757,0.4281,3105.7,3105.2,3.22037]
[1732031344942,0.4281,3105.7,3105.0,0.403085]
[1732031344943,0.4281,3105.7,3105.1,3.22048]
[1732031345316,0.4281,3105.7,3105.1,3.22044]
[1732031347357,0.4281,3105.7,3104.9,4.6892889]
[1732031347358,6.21957,3106.0,3105.2,3.2204]
[1732031347673,3.0,3106.0,3105.3,3.22027]
[1732031347818,3.4281,3106.2,3105.4,3.22017]
[1732031348023,6.64749,3106.2,3105.4,3.22017]
[1732031348221,6.64749,3106.2,3105.2,3.2204]
[1732031348222,3.0,3106.0,3105.2,3.2204]
[1732031348519,3.0,3106.0,3105.2,3.22034]
[1732031348718,3.0,3106.0,3105.3,3.2203]
[1732031348921,3.0,3106.0,3105.2,3.22034]
[1732031348922,0.621953,3105.9,3105.2,3.22034]
[1732031349126,0.4281,3105.8,3105.2,3.22034]
[1732031350265,0.4281,3105.8,3104.9,4.03096]
[1732031350266,3.21995,3105.7,3104.9,4.03096]
[1732031350463,3.0,3106.3,3105.6,3.21998]
[1732031350638,0.4281,3106.0,3105.6,3.2199]
[1732031350962,0.4281,3106.8,3106.1,3.21947]
[1732031351179,0.23972612,3106.7,3106.3,3.21916]
[1732031351324,0.4281,3106.8,3105.9,3.21967]
[1732031351524,3.583596,3106.7,3105.9,3.21967]
[1732031351726,4.10865969,3107.3,3105.7,0.7507]
[1732031351727,0.4281,3106.5,3105.7,0.7507]
[1732031351983,0.4281,3106.2,3105.4,3.77009]
[1732031352146,0.4281,3106.2,3105.6,3.21993]
[1732031352348,0.4281,3106.2,3105.8,0.55]
[1732031352572,3.21873,3106.9,3106.1,3.21947]
[1732031352878,3.21873,3106.9,3105.9,3.21957]
[1732031352879,3.88656527,3106.8,3105.9,3.21957]
[1732031353172,0.9501948,3106.7,3105.6,3.21995]
[1732031353325,0.4281,3106.8,3105.7,0.7677]
[1732031353531,3.64687,3106.8,3106.1,0.55]
[1732031353927,3.64687,3106.8,3106.0,0.55]
[1732031354165,1.114641,3106.8,3106.0,0.55]
[1732031354381,1.114641,3106.8,3106.1,3.21941]
[1732031354736,1.114641,3106.8,3105.9,3.2196]
[1732031354962,3.21885,3106.7,3105.9,3.2196]
[1732031355279,3.21885,3106.7,3105.7,3.21982]
[1732031355587,3.21907,3106.5,3105.7,3.21982]
[1732031356533,0.8614491,3106.6,3105.9,3.2196]
[1732031356742,0.4281,3106.6,3105.5,0.55]
[1732031356949,0.4281,3106.6,3106.0,4.01708]
[1732031357183,0.4281,3106.6,3106.0,3.621188]
[1732031357386,0.4281,3106.6,3106.0,0.401708]
[1732031357682,3.21921,3106.4,3105.7,0.55]
[1732031357832,0.4281,3106.4,3105.7,0.55]
[1732031358033,0.4281,3106.4,3105.9,0.64690893]
[1732031358034,3.21932,3106.3,3105.9,0.64690893]
[1732031358342,0.4281,3106.2,3105.5,0.55]
[1732031358549,0.4281,3106.2,3105.5,3.77002]
[1732031358892,0.4281,3106.2,3105.5,0.63854428]
[1732031358893,0.8293135,3106.2,3105.5,0.63854428]
[1732031359185,0.4281,3106.1,3105.3,3.22021]
[1732031359362,1.114798,3106.1,3105.3,3.22021]
[1732031359682,1.114798,3106.1,3104.8,4.04784]
[1732031359683,1.114798,3106.1,3105.6,3.21996]
[1732031359884,0.4281,3106.1,3105.7,3.21987]
[1732031360041,0.4281,3106.1,3105.8,3.21977]
[1732031360856,0.4281,3106.1,3105.7,3.21987]
[1732031361348,0.4281,3106.1,3105.8,3.2197]
[1732031361683,0.4281,3106.1,3105.8,4.199636]
[1732031361865,0.4281,3106.1,3105.8,3.877666]
[1732031362367,0.4281,3106.1,3105.8,0.657976]
[1732031363691,0.4281,3106.1,3105.2,3.22033]
[1732031363837,0.24007244,3106.0,3105.2,3.22033]
[1732031364238,0.71071424,3106.0,3105.4,3.22019]
[1732031364651,0.71071424,3106.0,3105.5,3.22009]
[1732031364848,0.71071424,3106.0,3105.4,3.22019]
[1732031365088,0.4281,3106.1,3105.4,3.22013]
[1732031365245,0.24019185,3106.0,3105.2,3.22034]
[1732031365566,0.24019185,3106.0,3105.2,3.22033]
[1732031365761,0.4281,3106.1,3105.7,0.64941709]
[1732031365939,0.60494472,3106.0,3105.7,0.64941709]
[1732031366153,0.60494472,3106.0,3105.2,6.44066]
[1732031366154,0.364748,3106.0,3105.2,6.44066]
[1732031366350,0.364748,3106.0,3105.2,3.22033]
[1732031366351,0.4012398,3105.9,3105.2,3.22033]
[1732031366802,0.4281,3106.1,3105.7,3.21981]
[1732031367299,0.4281,3106.1,3105.5,3.8610908]
[1732031367598,0.4281,3106.1,3105.8,3.21971]
[1732031367986,0.4281,3106.4,3105.8,3.21971]
[1732031368291,0.24020188,3106.3,3105.8,3.21971]
[1732031368598,0.4281,3106.4,3105.8,3.21971]
[1732031368750,0.24024496,3106.3,3105.9,3.76964]
[1732031368956,0.4281,3106.4,3106.0,3.21954]
[1732031369154,0.4281,3106.8,3106.1,3.21947]
[1732031369393,0.24026807,3106.7,3106.1,0.55]
[1732031369559,0.24026807,3106.6,3106.1,0.55]
[1732031369946,3.64688,3106.8,3106.0,0.55]
[1732031369947,0.24026807,3106.5,3106.0,0.55]
[1732031370238,0.24026807,3106.4,3106.0,0.55]
[1732031370541,3.64688,3106.8,3106.0,0.55]
[1732031370542,0.4281,3106.8,3106.0,0.55]
[1732031370728,0.24027055,3106.7,3106.4,0.55]
[1732031370931,0.4281,3106.8,3106.4,0.55]
[1732031371102,0.4281,3106.5,3105.7,0.55]
[1732031371305,0.24025348,3106.4,3105.9,0.55]
[1732031371525,0.4281,3106.5,3106.1,3.2194]
[1732031371721,3.0,3107.2,3106.2,0.55]
[1732031371938,3.0,3107.2,3106.4,3.21906]
[1732031371939,0.66849234,3107.1,3106.4,3.21906]
[1732031372247,0.60724157,3107.0,3106.5,6.43804]
[1732031372444,0.4281,3107.1,3106.6,3.76894]
[1732031372445,0.24039234,3106.9,3106.6,3.76894]
[1732031372652,0.24039234,3106.8,3106.6,3.76894]
[1732031372956,0.4281,3107.1,3106.6,0.55]
[1732031373103,0.24042106,3107.0,3106.6,0.55]
[1732031373306,0.24042106,3106.9,3106.6,0.55]
[1732031373543,0.24042106,3106.8,3106.6,0.55]
[1732031373859,0.4281,3107.1,3106.6,3.76888]
[1732031374021,0.24045924,3107.0,3106.6,3.76888]
[1732031374343,0.24045924,3106.9,3106.6,3.76888]
[1732031374501,1.31850969,3107.3,3106.6,3.76888]
[1732031374704,0.24045292,3107.2,3106.6,3.76888]
[1732031374953,0.24045292,3107.1,3106.6,3.76888]
[1732031375104,0.24045292,3107.0,3106.5,3.76903]
[1732031375303,5.61224166,3107.3,3106.5,3.76903]